fUST/lending_fUST_20260123
["ID","MTS","AMOUNT","RATE_DAILY","PERIOD"]
[403053639,1769106632229,-5825.919043,0.00023237,2]
[403053640,1769106632238,-200.45,0.00023579,2]
[403053641,1769106632247,-1199.1882006,0.00023581,2]
[403053642,1769106632256,-3439.58,0.00024054,2]
[403053643,1769106632265,-318.47533663,0.00024075,2]
[403053644,1769106632275,-573.25560593,0.00024075,2]
[403053645,1769106632284,-1019.1210772,0.00024075,2]
[403053646,1769106632294,-271.41525685,0.00024099,2]
[403053647,1769106632303,-199.62,0.000241,7]
[403053648,1769106632312,-1126.0,0.000245,5]
[403053649,1769106632321,-200.0,0.000245,120]
[403053650,1769106632331,-178.0,0.0002455,2]
[403053651,1769106632340,-251.92796001,0.00024617,2]
[403053652,1769106632350,-5371.98,0.0002462,10]
[403053653,1769106632359,-1764.69721468,0.0002463,10]
[403053654,1769106632371,-1410.72508389,0.0002463,10]
[403053657,1769106637856,-5000.0,0.00018709,2]
[403053658,1769106637865,-213.33934469,0.00018898,2]
[403053659,1769106637874,-235.24467335,0.00018898,2]
[403053660,1769106637884,-500.0,0.00018898,2]
[403053662,1769106637893,-500.0,0.00018898,2]
[403053663,1769106637902,-177.74748006,0.00018898,2]
[403053665,1769106637913,-500.0,0.00018898,2]
[403053666,1769106637923,-500.0,0.00018898,2]
[403053667,1769106637935,-500.0,0.00018898,2]
[403053668,1769106637944,-500.0,0.00018898,2]
[403053669,1769106637953,-500.0,0.00018898,2]
[403053670,1769106637963,-457.14593059,0.00018898,2]
[403053671,1769106637974,-500.0,0.00018898,2]
[403053673,1769106637989,-500.0,0.00018898,2]
[403053675,1769106637999,-574.24464869,0.00021823,2]
[403053677,1769106638009,-3814.11770143,0.0002463,10]
[403053680,1769106638020,-8387.45,0.0002464,10]
[403053681,1769106638029,-40745.68061496,0.0002465,2]
[403053684,1769106638041,-116163.03340012,0.0002465,2]
[403053685,1769106638051,-514.53397614,0.0002465,2]
[403053687,1769106638060,-1326.21,0.000247,14]
[403053689,1769106638069,-555.65321278,0.00024822,2]
[403053691,1769106638079,-304.2988369,0.00024878,2]
[403053693,1769106638088,-276.0,0.00024932,7]
[403053695,1769106638097,-61841.09872675,0.00025,15]
[403053697,1769106638106,-96454.69020463,0.00025,8]
[403053699,1769106638116,-160.0,0.00025,30]
[403053701,1769106638125,-776.8445567,0.00025,30]
[403053703,1769106638134,-276.0,0.00025,7]
[403053705,1769106638143,-328.0,0.0002507,2]
[403053707,1769106638152,-305.3567919,0.00025078,2]
[403053709,1769106638161,-153.0,0.00025078,2]
[403053735,1769106638396,-59626.2685374,0.00025143,2]
[403053737,1769106638405,-1241.95720201,0.00025143,2]
[403053739,1769106638415,-615.14356865,0.00025267,2]
[403053741,1769106638425,-1107.25842357,0.00025267,2]
[403053743,1769106638434,-1968.45941968,0.00025267,2]
[403053745,1769106638444,-389.0,0.00025301,2]
[403053747,1769106638453,-562.83509494,0.00025342,2]
[403053749,1769106638462,-1013.10317089,0.00025342,2]
[403053751,1769106638472,-1801.0723038,0.00025342,2]
[403053753,1769106638481,-428.35425419,0.00025342,2]
[403053755,1769106638490,-771.03765753,0.00025342,2]
[403053757,1769106638499,-3075.71784325,0.00025408,2]
[403053759,1769106638508,-150.32930833,0.0002548,2]
[403053761,1769106638518,-150.15040336,0.0002548,2]
[403053763,1769106638527,-268.58586083,0.0002548,2]
[403053765,1769106638536,-109353.92281867,0.0002548,2]
[403053767,1769106638546,-500.0,0.0002548,2]
[403053769,1769106638555,-382.43628632,0.00025534,2]
[403053771,1769106638564,-500.0,0.00025617,2]
[403053773,1769106638573,-400.89,0.00025722,2]
[403053775,1769106638582,-200.0,0.00025754,2]
[403053777,1769106638591,-200.0,0.00025754,2]
[403053779,1769106638600,-200.0,0.00025754,2]
[403053781,1769106638609,-200.0,0.00025754,2]
[403053783,1769106638618,-200.0,0.00025754,2]
[403053784,1769106638627,-200.0,0.00025754,2]
[403053786,1769106638637,-200.0,0.00025754,2]
[403053788,1769106638646,-200.0,0.00025754,2]
[403053791,1769106638656,-200.0,0.00025754,2]
[403053792,1769106638665,-500.0,0.00025754,2]
[403053793,1769106638674,-22550.28966829,0.00025789,2]
[403053810,1769106640026,-498.50505466,0.00023335,2]
[403053815,1769106640080,-75.73959403,0.00023335,2]
[403053816,1769106640090,-724.12803612,0.00025789,2]
[403053817,1769106640101,-2362.81077802,0.00025789,2]
[403053818,1769106640112,-17938.2,0.00025789,2]
[403053852,1769106642989,-3781.88,0.00025789,2]
[403053853,1769106643001,-5151.81426372,0.00025789,2]
[403053854,1769106643148,-962.1005026,0.00025789,2]
[403053885,1769106646019,-574.24464869,0.00024848,2]
[403053886,1769106646028,-500.0,0.00025722,2]
[403053887,1769106646038,-2317.24638203,0.00025789,2]
[403053888,1769106646051,-644.56856361,0.00025789,2]
[403053894,1769106880652,-5000.0,0.00018711,2]
[403053895,1769106884324,-303.10001603,0.000189,2]
[403053896,1769106884351,-638.07794766,0.00018989,3]
[403053897,1769106884377,-303.10001603,0.00019089,2]
[403053898,1769106884406,-303.10001603,0.00019278,2]
[403053899,1769106884432,-303.10001604,0.00019467,2]
[403053900,1769106884460,-399.06457836,0.00020032,2]
[403053901,1769106884486,-1041.66666667,0.00021235,2]
[403053902,1769106884514,-197.89,0.00023182,2]
[403053906,1769107348862,-4160.1387499,0.00017878,2]
[403053909,1769107816663,-1216.8179495,0.00016982,2]
[403053910,1769107816692,-2566.374101,0.00017154,2]
[403053920,1769107838020,-268.61921822,0.00017154,2]
[403053922,1769107838124,-281.04,0.00017154,2]
[403053923,1769107838137,-1883.96668078,0.00017154,2]
[403053924,1769107838147,-300.0,0.00017516,2]
[403053925,1769107838156,-4894.9294375,0.00017517,2]
[403053926,1769107838166,-186.2878543,0.0001759,2]
[403053927,1769107838175,-175.961228,0.00017679,2]
[403053928,1769107838185,-216.375,0.00018423,2]
[403053929,1769107838194,-900.0,0.0001863,2]
[403053930,1769107838204,-349.0,0.00018788,2]
[403053931,1769107838213,-335.8640493,0.00018793,2]
[403053932,1769107838223,-500.0,0.00018793,2]
[403053933,1769107838232,-394.0529296,0.00018793,2]
[403053934,1769107838242,-500.0,0.00018793,2]
[403053935,1769107838251,-500.0,0.00018793,2]
[403053936,1769107838261,-307.79346763,0.00018793,2]
[403053937,1769107838272,-500.0,0.00018793,2]
[403053939,1769107838281,-500.0,0.00018793,2]
[403053940,1769107838291,-500.0,0.00018793,2]
[403053941,1769107838300,-242.0,0.00018793,2]
[403053942,1769107838314,-500.0,0.00018793,2]
[403053944,1769107838323,-500.0,0.00018793,2]
[403053947,1769107838334,-264.22321684,0.00018793,2]
[403053948,1769107838342,-500.0,0.00018793,2]
[403053950,1769107838353,-436.52789215,0.00018793,2]
[403053952,1769107838362,-819.34483344,0.00018794,2]
[403053954,1769107838373,-47554.6447672,0.00018794,2]
[403053955,1769107838382,-1000000.0,0.00018799,2]
[403053956,1769107838393,-151.0,0.000188,2]
[403053957,1769107838402,-2308.14016709,0.00018913,2]
[403053959,1769107838411,-428.0,0.0001894,2]
[403053961,1769107838421,-550.0,0.00019124,2]
[403053963,1769107838430,-3950.07,0.00019178,2]
[403053965,1769107838440,-1100.56916409,0.00019178,2]
[403053968,1769107838449,-183.12,0.000192,2]
[403053970,1769107838459,-7963.55,0.000192,2]
[403053972,1769107838468,-219.81966807,0.0001959,2]
[403053973,1769107838478,-2000.0,0.0002,7]
[403053975,1769107838486,-10000.0,0.00020099,7]
[403053977,1769107838496,-10000.0,0.00020099,7]
[403053979,1769107838505,-10000.0,0.00020099,7]
[403053981,1769107838516,-10000.0,0.00020099,7]
[403053984,1769107838525,-10000.0,0.00020099,7]
[403053986,1769107838534,-10000.0,0.00020099,7]
[403053987,1769107838544,-6329.0,0.00020099,7]
[403053989,1769107838553,-2308.14016708,0.00020404,2]
[403053991,1769107838562,-2000.0,0.000205,7]
[403053994,1769107838572,-1816.72,0.000208,2]
[403053996,1769107838581,-2000.0,0.00021,7]
[403053998,1769107838590,-969.5,0.00021131,10]
[403053999,1769107838599,-234.11872737,0.000212,2]
[403054001,1769107838608,-1041.66666667,0.00021236,2]
[403054004,1769107838618,-161.0,0.00021288,4]
[403054005,1769107838627,-234.11872737,0.000214,2]
[403054007,1769107838636,-500.0,0.000214,2]
[403054009,1769107838645,-2000.0,0.000215,7]
[403054011,1769107838654,-253.35148184,0.0002159,2]
[403054013,1769107838663,-500.0,0.00021674,2]
[403054015,1769107838672,-184.31641531,0.00021752,2]
[403054017,1769107838681,-2308.14016708,0.00021896,2]
[403054019,1769107838690,-150.0,0.00021918,2]
[403054021,1769107838699,-167.0,0.00022,2]
[403054023,1769107838709,-2000.0,0.00022,7]
[403054025,1769107838718,-1335.73,0.000222,2]
[403054027,1769107838727,-859.2,0.000222,7]
[403054029,1769107838736,-478.19556801,0.00022402,2]
[403054032,1769107838747,-792.17003717,0.00022402,2]
[403054033,1769107838756,-3950.07,0.00022465,4]
[403054036,1769107838766,-300.0,0.00022466,2]
[403054037,1769107838775,-2000.0,0.000225,7]
[403054039,1769107838784,-1023.78521775,0.00023,2]
[403054041,1769107838794,-2000.0,0.00023,7]
[403054067,1769107839022,-450.0,0.00023014,2]
[403054069,1769107839031,-2308.14016708,0.00023387,2]
[403054070,1769107839040,-969.9295201,0.00023439,2]
[403054072,1769107839050,-2000.0,0.000235,7]
[403054075,1769107839060,-289.07618867,0.00023562,2]
[403054077,1769107839070,-286.88329562,0.0002359,2]
[403054079,1769107839080,-205.99,0.00023913,2]
[403054080,1769107839090,-2000.0,0.00024,7]
[403054083,1769107839101,-1021.0,0.00024,2]
[403054084,1769107839111,-384.13790844,0.00024346,2]
[403054086,1769107839120,-151.0,0.00024346,2]
[403054088,1769107839130,-151.0,0.00024346,2]
[403054090,1769107839140,-151.0,0.00024346,2]
[403054092,1769107839151,-151.0,0.00024346,2]
[403054094,1769107839161,-151.0,0.00024346,2]
[403054096,1769107839171,-198.0,0.00024346,2]
[403054098,1769107839180,-557.5788265,0.00024346,2]
[403054101,1769107839192,-500.0,0.00024346,2]
[403054103,1769107839203,-300.91570277,0.00024346,2]
[403054104,1769107839213,-168.3888056,0.00024346,2]
[403054106,1769107839224,-174.61919141,0.00024346,2]
[403054109,1769107839235,-181.08010149,0.00024346,2]
[403054110,1769107839244,-187.78006525,0.00024346,2]
[403054112,1769107839253,-194.72792766,0.00024346,2]
[403054114,1769107839266,-201.93286099,0.00024346,2]
[403054116,1769107839276,-209.40437684,0.00024346,2]
[403054118,1769107839286,-217.15233878,0.00024346,2]
[403054120,1769107839295,-225.18697532,0.00024346,2]
[403054122,1769107839306,-233.51889341,0.00024346,2]
[403054124,1769107839318,-242.15909246,0.00024346,2]
[403054126,1769107839327,-251.11897888,0.00024346,2]
[403054128,1769107839336,-260.4103811,0.00024346,2]
[403054130,1769107839346,-270.0455652,0.00024346,2]
[403054132,1769107839356,-280.03725112,0.00024346,2]
[403054134,1769107839367,-290.39862941,0.00024346,2]
[403054136,1769107839376,-301.1433787,0.00024346,2]
[403054138,1769107839385,-2000.0,0.000245,7]
[403054140,1769107839394,-1454.58,0.000246,3]
[403054142,1769107839403,-309.209,0.00024648,30]
[403054144,1769107839413,-309.209,0.00024648,30]
[403054146,1769107839422,-380.0,0.00024658,2]
[403054148,1769107839431,-7963.55,0.000248,2]
[403054150,1769107839440,-24839.1440402,0.000248,2]
[403054151,1769107839450,-318.72,0.00024832,7]
[403054152,1769107839459,-2308.14016708,0.00024878,2]
[403054153,1769107839469,-578.20924308,0.00024894,2]
[403054154,1769107839478,-294.664925,0.000249,7]
[403054155,1769107839487,-606487.526552,0.000249,2]
[403054156,1769107839496,-287.904,0.000249,7]
[403054157,1769107839506,-151.0,0.000249,7]
[403054158,1769107839517,-276.0,0.00024932,7]
[403054159,1769107839527,-1021.0,0.00025,2]
[403054160,1769107839536,-276.0,0.00025,7]
[403054161,1769107839545,-2000.0,0.00025,7]
[403054162,1769107839554,-165.7430901,0.00025127,2]
[403054163,1769107839563,-152.9936218,0.00025127,2]
[403054164,1769107839572,-13002.1903515,0.00025284,2]
[403054165,1769107839582,-3105.1640266,0.00025327,2]
[403054166,1769107839591,-1046.3505202,0.00025327,2]
[403054167,1769107839600,-29985.3476783,0.00025327,2]
[403054168,1769107839610,-1368.0,0.00025343,2]
[403054169,1769107839619,-599.60298507,0.00025442,2]
[403054170,1769107839629,-1370.73361339,0.00025477,2]
[403054171,1769107839638,-193.54373018,0.00025477,2]
[403054172,1769107839647,-481.34951174,0.00025477,2]
[403054173,1769107839656,-866.42912112,0.00025477,2]
[403054174,1769107839665,-1540.31843755,0.00025477,2]
[403054175,1769107839675,-2406.74755868,0.00025477,2]
[403054176,1769107839684,-381.58806478,0.00025477,2]
[403054177,1769107839693,-686.85851661,0.00025477,2]
[403054178,1769107839703,-1221.08180731,0.00025477,2]
[403054179,1769107839712,-506.08654645,0.00025477,2]
[403054180,1769107839721,-910.95578361,0.00025477,2]
[403054181,1769107839730,-1619.47694865,0.00025477,2]
[403054182,1769107839739,-2530.43273226,0.00025477,2]
[403054183,1769107839749,-3643.82313445,0.00025477,2]
[403054184,1769107839759,-150.0,0.0002548,2]
[403054185,1769107839769,-150.0,0.0002548,2]
[403054186,1769107839778,-150.0,0.0002548,2]
[403054187,1769107839788,-150.0,0.0002548,2]
[403054188,1769107839798,-500.0,0.0002548,2]
[403054189,1769107839807,-500.0,0.0002548,2]
[403054190,1769107839816,-268.58586083,0.0002548,2]
[403054192,1769107839826,-111215.68308668,0.0002548,2]
[403054194,1769107839835,-2000.0,0.000255,7]
[403054196,1769107839844,-320.41510939,0.0002559,2]
[403054198,1769107839854,-150.0,0.00025617,2]
[403054200,1769107839863,-150.0,0.00025617,2]
[403054202,1769107839873,-150.0,0.00025617,2]
[403054204,1769107839882,-500.0,0.00025617,2]
[403054205,1769107839891,-500.0,0.00025617,2]
[403054206,1769107839901,-614.7672714,0.00025699,2]
[403054207,1769107839910,-1816.72,0.000257,14]
[403054208,1769107839919,-859.2,0.000257,7]
[403054209,1769107839928,-3950.07,0.00025753,6]
[403054210,1769107839937,-150.0,0.00025754,2]
[403054211,1769107839947,-150.0,0.00025754,2]
[403054212,1769107839956,-150.0,0.00025754,2]
[403054213,1769107839965,-500.0,0.00025754,2]
[403054214,1769107839975,-500.0,0.00025754,2]
[403054215,1769107839984,-1335.73,0.000258,2]
[403054216,1769107839993,-150.0,0.00025886,2]
[403054217,1769107840002,-150.0,0.00025886,2]
[403054218,1769107840013,-150.0,0.00025886,2]
[403054219,1769107840022,-150.0,0.00025886,2]
[403054220,1769107840031,-150.0,0.00025886,2]
[403054221,1769107840040,-500.0,0.00025886,2]
[403054222,1769107840049,-200.000001,0.00025886,2]
[403054223,1769107840059,-150.0,0.00025886,2]
[403054224,1769107840068,-150.0,0.00025886,2]
[403054225,1769107840077,-150.0,0.00025886,2]
[403054226,1769107840086,-150.0,0.00025886,2]
[403054227,1769107840096,-150.15040336,0.00025886,2]
[403054228,1769107840105,-276.0,0.0002589,7]
[403054229,1769107840115,-150.0,0.00025891,2]
[403054230,1769107840124,-150.0,0.00025891,2]
[403054231,1769107840133,-150.0,0.00025891,2]
[403054232,1769107840142,-500.0,0.00025891,2]
[403054233,1769107840151,-500.0,0.00025891,2]
[403054234,1769107840162,-522.1188018,0.00025894,2]
[403054235,1769107840171,-157.26,0.000259,7]
[403054236,1769107840180,-621.78829552,0.0002599,2]
[403054237,1769107840189,-530.3120382,0.00026,2]
[403054238,1769107840199,-19900.0,0.00026,2]
[403054239,1769107840208,-151.0,0.00026,7]
[403054240,1769107840217,-159.149109,0.00026,7]
[403054241,1769107840226,-159.149109,0.00026,7]
[403054242,1769107840235,-159.149109,0.00026,7]
[403054243,1769107840245,-159.149109,0.00026,7]
[403054244,1769107840254,-1021.0,0.00026,2]
[403054245,1769107840264,-2000.0,0.00026,7]
[403054246,1769107840273,-151.0,0.00026,7]
[403054247,1769107840282,-150.0,0.00026023,2]
[403054248,1769107840291,-150.0,0.00026023,2]
[403054249,1769107840301,-150.0,0.00026023,2]
[403054250,1769107840313,-150.0,0.00026023,2]
[403054251,1769107840322,-150.0,0.00026023,2]
[403054252,1769107840332,-500.0,0.00026023,2]
[403054253,1769107840341,-150.0,0.00026023,2]
[403054254,1769107840351,-150.0,0.00026023,2]
[403054255,1769107840360,-150.0,0.00026023,2]
[403054256,1769107840369,-150.0,0.00026023,2]
[403054257,1769107840379,-151.0,0.00026027,7]
[403054258,1769107840389,-151.0,0.00026027,7]
[403054259,1769107840398,-151.0,0.00026027,7]
[403054260,1769107840407,-271.250949,0.00026027,7]
[403054261,1769107840416,-500.0,0.00026028,2]
[403054262,1769107840425,-500.0,0.00026028,2]
[403054263,1769107840435,-411.98,0.00026087,2]
[403054264,1769107840444,-150.0,0.0002616,2]
[403054265,1769107840454,-150.32930833,0.0002616,2]
[403054266,1769107840462,-150.0,0.0002616,2]
[403054267,1769107840471,-150.0,0.0002616,2]
[403054268,1769107840481,-500.0,0.0002616,2]
[403054269,1769107840490,-200.0,0.0002616,2]
[403054270,1769107840499,-200.0,0.0002616,2]
[403054271,1769107840507,-200.0,0.0002616,2]
[403054272,1769107840518,-200.0,0.0002616,2]
[403054273,1769107840527,-194.8142484,0.0002616,2]
[403054275,1769107840536,-500.0,0.00026165,2]
[403054277,1769107840545,-231.0,0.00026165,2]
[403054279,1769107840555,-151.0,0.00026235,5]
[403054281,1769107840563,-484.84,0.0002628,3]
[403054283,1769107840572,-150.0,0.00026297,2]
[403054285,1769107840581,-150.0,0.00026297,2]
[403054287,1769107840590,-150.0,0.00026297,2]
[403054290,1769107840599,-500.0,0.00026297,2]
[403054292,1769107840608,-500.0,0.00026302,2]
[403054295,1769107840617,-157.24845598,0.00026311,5]
[403054297,1769107840627,-157.07055921,0.00026311,5]
[403054299,1769107840635,-2308.14016708,0.00026369,2]
[403054301,1769107840645,-7963.55,0.000264,2]
[403054303,1769107840654,-2543.082483,0.000264,30]
[403054305,1769107840663,-779.0,0.000264,2]
[403054307,1769107840672,-200.0,0.00026434,2]
[403054309,1769107840682,-150.0,0.00026434,2]
[403054312,1769107840691,-150.0,0.00026434,2]
[403054314,1769107840701,-500.0,0.00026439,2]
[403054316,1769107840710,-2000.0,0.000265,7]
[403054317,1769107840719,-473.47503097,0.00026538,2]
[403054319,1769107840729,-250.0,0.00026571,2]
[403054321,1769107840738,-250.0,0.00026571,2]
[403054323,1769107840747,-2520.10163364,0.00026575,2]
[403054325,1769107840756,-190.117484,0.00026575,30]
[403054327,1769107840767,-6860.720293,0.00026575,30]
[403054329,1769107840777,-533.402963,0.00026575,30]
[403054331,1769107840786,-184.836444,0.00026576,30]
[403054333,1769107840795,-500.0,0.00026576,2]
[403054335,1769107840805,-484.84,0.000267,3]
[403054337,1769107840814,-151.0,0.00026816,5]
[403054339,1769107840823,-4980.92116383,0.00026879,30]
[403054342,1769107840836,-353.10847217,0.00026879,30]
[403054344,1769107840845,-484.84,0.000269,3]
[403054346,1769107840854,-2000.0,0.00027,7]
[403054348,1769107840863,-175.37966769,0.00027,2]
[403054350,1769107840875,-11549.20616657,0.00027,2]
[403054353,1769107840913,-2919.67419097,0.000248,2]
[403054355,1769107840924,-743.36268876,0.000248,2]
[403054356,1769107840934,-1056.2537685,0.000248,2]
[403054357,1769107840945,-2668.98389889,0.000248,2]
[403054358,1769107840955,-47932.97370841,0.00027,2]
[403054359,1769107840965,-1061.69153269,0.00027,2]
[403054372,1769107843230,-843.72021,0.00016982,2]
[403054373,1769107843242,-418.93857618,0.00016982,2]
[403054403,1769107846119,-2520.52326432,0.00016982,2]
[403054405,1769107846129,-202.667,0.00025343,2]
[403054407,1769107846139,-7388.27454712,0.00025422,2]
[403054409,1769107846148,-100328.79328481,0.00027,2]
[403054419,1769107846224,-12419.9523964,0.00027,2]
[403054421,1769107846235,-705.0,0.00027,2]
[403054465,1769108813357,999.999999,0.00015,7]
[403054493,1769109032125,-962.90483742,0.00017427,2]
[403054494,1769109032137,-1249.50691396,0.00017427,2]
[403054495,1769109032150,-514.69717787,0.00017427,2]
[403054498,1769109032201,-843.43653506,0.00017427,2]
[403054504,1769109032280,-424.98544263,0.00017427,2]
[403054513,1769109038280,-1004.46909306,0.00017427,2]
[403054514,1769109038292,-269.19949724,0.00017603,2]
[403054515,1769109038331,-1113.66190076,0.00017603,2]
[403054516,1769109038387,-2656.5359782,0.00017603,2]
[403054517,1769109038397,-182.56209721,0.00017998,2]
[403054518,1769109038409,-173.1,0.0001832,2]
[403054519,1769109038420,-235.10483451,0.00018586,2]
[403054520,1769109038431,-500.0,0.00018586,2]
[403054521,1769109038442,-500.0,0.00018586,2]
[403054523,1769109038452,-500.0,0.00018586,2]
[403054525,1769109038463,-500.0,0.00018586,2]
[403054527,1769109038473,-500.0,0.00018586,2]
[403054530,1769109038483,-186.79008236,0.00018586,2]
[403054531,1769109038493,-500.0,0.00018586,2]
[403054532,1769109038504,-500.0,0.00018586,2]
[403054533,1769109038514,-500.0,0.00018586,2]
[403054534,1769109038525,-500.0,0.00018586,2]
[403054535,1769109038535,-500.0,0.00018586,2]
[403054536,1769109038546,-500.0,0.00018586,2]
[403054537,1769109038556,-634.42232168,0.00018586,2]
[403054538,1769109038567,-649.81544903,0.00018586,2]
[403054539,1769109038578,-458.09251178,0.00018586,2]
[403054540,1769109038588,-2308.14016709,0.00018587,2]
[403054541,1769109038599,-1000000.0,0.00018587,2]
[403054542,1769109038610,-900.0,0.0001863,2]
[403054543,1769109038620,-319.0,0.00018684,2]
[403054544,1769109038630,-50000.0,0.00018687,2]
[403054545,1769109038641,-608.46357614,0.00018691,2]
[403054546,1769109038661,-151.0,0.000187,2]
[403054547,1769109038681,-399.0,0.0001885,2]
[403054548,1769109038691,-361.43628632,0.00019038,2]
[403054549,1769109038703,-3950.07,0.00019178,2]
[403054550,1769109038713,-200.56916409,0.00019178,2]
[403054551,1769109038723,-7963.55,0.000192,2]
[403054552,1769109038742,-183.12,0.000192,2]
[403054553,1769109038751,-1816.72,0.000192,2]
[403054554,1769109038761,-215.42327471,0.00019998,2]
[403054555,1769109038772,-2000.0,0.0002,7]
[403054556,1769109038783,-10000.0,0.00020093,7]
[403054557,1769109038792,-10000.0,0.00020093,7]
[403054558,1769109038802,-10000.0,0.00020093,7]
[403054559,1769109038812,-10000.0,0.00020093,7]
[403054560,1769109038822,-10000.0,0.00020093,7]
[403054561,1769109038831,-10000.0,0.00020093,7]
[403054562,1769109038841,-6329.0,0.00020093,7]
[403054563,1769109038851,-2308.14016708,0.00020128,2]
[403054564,1769109038861,-2000.0,0.000205,7]
[403054565,1769109038871,-150.0,0.00021,2]
[403054566,1769109038882,-2000.0,0.00021,7]
[403054567,1769109038892,-969.5,0.00021181,10]
[403054568,1769109038903,-161.0,0.00021342,4]
[403054569,1769109038913,-1041.66666667,0.00021351,2]
[403054570,1769109038923,-157.26,0.000214,2]
[403054571,1769109038932,-234.11872737,0.000214,2]
[403054572,1769109038943,-2000.0,0.000215,7]
[403054573,1769109038953,-234.11872737,0.000216,2]
[403054574,1769109038963,-500.0,0.000216,2]
[403054575,1769109038973,-2308.14016708,0.0002167,2]
[403054576,1769109038983,-318.72,0.00021846,2]
[403054577,1769109039004,-500.0,0.00021874,2]
[403054578,1769109039020,-184.31641531,0.0002188,2]
[403054579,1769109039031,-150.0,0.00021918,2]
[403054580,1769109039041,-248.28445221,0.00021998,2]
[403054581,1769109039052,-167.0,0.00022,2]
[403054582,1769109039062,-859.2,0.00022,7]
[403054583,1769109039072,-1448.66,0.00022,2]
[403054584,1769109039082,-2000.0,0.00022,7]
[403054585,1769109039093,-205.99,0.00022433,2]
[403054586,1769109039103,-3950.07,0.00022465,4]
[403054587,1769109039113,-300.0,0.00022466,2]
[403054588,1769109039123,-2000.0,0.000225,7]
[403054589,1769109039133,-1023.78521775,0.00023,2]
[403054590,1769109039143,-2000.0,0.00023,7]
[403054591,1769109039153,-450.0,0.00023014,2]
[403054592,1769109039163,-1816.72,0.000231,14]
[403054593,1769109039173,-2308.14016708,0.00023211,2]
[403054594,1769109039183,-159.62665952,0.00023329,5]
[403054595,1769109039193,-2000.0,0.000235,7]
[403054596,1769109039203,-289.07618867,0.00023562,2]
[403054597,1769109039213,-281.1456297,0.00023998,2]
[403054598,1769109039223,-2000.0,0.00024,7]
[403054599,1769109039233,-1041.66666667,0.00024,7]
[403054600,1769109039243,-1000.0,0.00024,24]
[403054601,1769109039253,-1021.0,0.00024,2]
[403054602,1769109039263,-1920.63406929,0.00024206,2]
[403054603,1769109039272,-411.98,0.00024472,2]
[403054604,1769109039283,-2000.0,0.000245,7]
[403054605,1769109039293,-831.2,0.000246,3]
[403054606,1769109039303,-309.209,0.00024648,30]
[403054607,1769109039313,-309.209,0.00024648,30]
[403054608,1769109039324,-151.0,0.00024677,2]
[403054609,1769109039334,-151.0,0.00024677,2]
[403054610,1769109039344,-151.0,0.00024677,2]
[403054611,1769109039355,-384.13790844,0.00024677,2]
[403054612,1769109039364,-168.3888056,0.00024677,2]
[403054613,1769109039375,-151.0,0.00024677,2]
[403054614,1769109039385,-174.61919141,0.00024677,2]
[403054615,1769109039798,-151.0,0.00024677,2]
[403054616,1769109039818,-181.08010149,0.00024677,2]
[403054617,1769109039830,-198.0,0.00024677,2]
[403054618,1769109039839,-187.78006525,0.00024677,2]
[403054619,1769109039848,-557.5788265,0.00024677,2]
[403054620,1769109039858,-194.72792766,0.00024677,2]
[403054621,1769109039867,-201.93286099,0.00024677,2]
[403054622,1769109039876,-209.40437684,0.00024677,2]
[403054623,1769109039885,-217.15233878,0.00024677,2]
[403054624,1769109039894,-225.18697532,0.00024677,2]
[403054625,1769109039904,-233.51889341,0.00024677,2]
[403054626,1769109039913,-242.15909246,0.00024677,2]